bitfinex-derivatives/quotes_BTCF0:USTF0_20260131
["timestamp","ask_amount","ask_price","bid_price","bid_amount"]
[1769870566377,0.01236,81023.0,80985.0,0.27812861]
[1769870566682,0.01236,81023.0,80984.0,0.012365]
[1769870566683,0.012359,81025.0,80987.0,0.27812861]
[1769870566986,0.10012,81040.0,80992.0,0.27812861]
[1769870567282,0.012358,81032.0,81000.0,0.27812861]
[1769870567476,0.012359,81028.0,81000.0,0.27812861]
[1769870568182,0.01236,81021.0,80987.0,0.27812861]
[1769870568377,0.012359,81026.0,80987.0,0.29049361]
[1769870568585,0.012358,81036.0,80995.0,0.27812861]
[1769870568778,0.012358,81036.0,80998.0,0.27812861]
[1769870568983,0.012358,81033.0,81000.0,0.27812861]
[1769870569186,0.10012,81040.0,80981.0,0.10012]
[1769870569187,0.012359,81025.0,80989.0,0.012365]
[1769870569389,0.012359,81025.0,80989.0,0.29049361]
[1769870569576,0.012359,81027.0,80993.0,0.27812861]
[1769870569786,0.35311868,81039.0,80993.0,0.27812861]
[1769870569977,0.01236,81020.0,80983.0,0.29049461]
[1769870570177,0.012361,81017.0,80983.0,0.29049461]
[1769870570782,0.29429978,81028.0,80984.0,0.12345679]
[1769870571182,0.012361,81015.0,80983.0,0.27812861]
[1769870571579,0.012361,81012.0,80983.0,0.27812861]
[1769870571988,0.12345831,81026.0,80983.0,0.27812861]
[1769870572180,0.29429978,81038.0,80996.0,0.27812861]
[1769870572582,0.012359,81026.0,80996.0,0.27812861]
[1769870573691,0.29429978,81038.0,80996.0,0.27812861]
[1769870573889,0.012359,81030.0,80998.0,0.27812861]
[1769870574400,0.10012,81040.0,81010.0,0.27812861]
[1769870574586,0.10012,81040.0,80984.0,0.012365]
[1769870574587,0.10012,81040.0,81012.0,0.27812861]
[1769870574784,0.29429978,81050.0,81012.0,0.27812861]
[1769870574987,0.012358,81031.0,81008.0,0.10012]
[1769870575291,0.012359,81025.0,81008.0,0.10012]
[1769870575784,0.012356,81047.0,81008.0,0.10012]
[1769870575785,0.01236,81023.0,81008.0,0.10012]
[1769870575988,0.29429978,81042.0,81008.0,0.10012]
[1769870575989,0.012357,81041.0,81008.0,0.10012]
[1769870576197,0.29429978,81040.0,81008.0,0.09609251]
[1769870576393,0.012361,81017.0,80990.0,0.27812861]
[1769870576691,0.012361,81017.0,80991.0,0.12343164]
[1769870576885,0.01236,81019.0,80991.0,0.12343164]
[1769870577081,0.10012,81039.0,80976.0,0.27812861]
[1769870577082,0.29429978,81013.0,80976.0,0.27812861]
[1769870577384,0.012361,81016.0,80979.0,0.012366]
[1769870577582,0.012361,81016.0,80980.0,0.27812861]
[1769870577891,0.10012,81039.0,81000.0,0.27812861]
[1769870578095,0.003,81060.0,81011.0,0.27812861]
[1769870578289,0.012355,81056.0,81023.0,0.27812861]
[1769870578495,0.012355,81053.0,81023.0,0.27812861]
[1769870578992,0.29429978,81065.0,81023.0,0.27812861]
[1769870579385,0.29429978,81063.0,81023.0,0.27812861]
[1769870579788,0.29429978,81063.0,81012.0,0.39060961]
[1769870579988,0.29429978,81061.0,81012.0,0.37824861]
[1769870580186,0.29429978,81061.0,81014.0,0.27812861]
[1769870580487,0.00182732,81060.0,81030.0,0.27812861]
[1769870580791,0.09712,81096.0,81060.0,0.27812861]
[1769870581380,0.09712,81096.0,81049.0,0.10012]
[1769870581381,0.09712,81096.0,81066.0,0.27812861]
[1769870581587,0.29129978,81120.0,81067.0,0.012353]
[1769870581900,0.12333345,81095.0,81051.0,0.27812861]
[1769870582187,0.10012,81129.0,81055.0,0.27812861]
[1769870582395,0.15715427,81128.0,81067.0,0.27812861]
[1769870582586,0.10012,81129.0,81048.0,0.32868]
[1769870582587,0.12333345,81118.0,81070.0,0.27812861]
[1769870582780,0.15715427,81117.0,81058.0,0.27812861]
[1769870582987,0.15715427,81116.0,81054.0,0.12330836]
[1769870583191,0.15715427,81115.0,81046.0,0.27812861]
[1769870583391,0.15715427,81114.0,81043.0,0.10012]
[1769870583590,0.29429978,81112.0,81043.0,0.10012]
[1769870583785,0.29429978,81112.0,81002.0,0.01199855]
[1769870583786,0.29429978,81109.0,81018.0,0.27812861]
[1769870583984,0.23440839,81105.0,81018.0,0.27812861]
[1769870584188,0.4004,81111.0,81018.0,0.27812861]
[1769870584189,0.29429978,81102.0,81023.0,0.27812861]
[1769870584487,0.29429978,81100.0,81045.0,0.27812861]
[1769870584689,0.12333725,81101.0,81064.0,0.27812861]
[1769870584994,0.39437978,81104.0,81064.0,0.27812861]
[1769870585185,0.15691219,81103.0,81064.0,0.27812861]
[1769870585493,0.29429978,81101.0,81045.0,0.27812861]
[1769870585689,0.29429978,81099.0,81045.0,0.27812861]
[1769870585884,0.29429978,81097.0,81045.0,0.27812861]
[1769870586085,0.15688298,81098.0,81033.0,0.27812861]
[1769870586086,0.29429978,81095.0,81033.0,0.27812861]
[1769870586288,0.29429978,81093.0,81040.0,0.27812861]
[1769870586492,0.29429978,81093.0,81045.0,0.12332965]
[1769870586792,0.29429978,81093.0,81037.0,0.28547732]
[1769870586995,0.10008,81104.0,81057.0,0.28547732]
[1769870587297,0.27139257,81116.0,81071.0,0.28547732]
[1769870587493,0.27139257,81114.0,81060.0,0.10008]
[1769870587688,0.27139257,81102.0,81060.0,0.10008]
[1769870588192,0.27139257,81100.0,81060.0,0.10008]
[1769870588395,0.27139257,81098.0,81060.0,0.10008]
[1769870588593,0.10008,81106.0,81061.0,0.28547732]
[1769870588892,0.39472906,81105.0,81061.0,0.28547732]
[1769870589197,0.27139257,81104.0,81060.0,0.10008]
[1769870589498,0.27139257,81102.0,81034.0,0.28547732]
[1769870589698,0.27139257,81100.0,81034.0,0.28547732]
[1769870589900,0.27139257,81098.0,81030.0,0.12333193]
[1769870590197,0.27139257,81091.0,81023.0,0.28547732]
[1769870590392,0.27139257,81088.0,81023.0,0.28547732]
[1769870590585,0.23440839,81089.0,81023.0,0.28547732]
[1769870590586,0.27139257,81086.0,81023.0,0.28547732]
[1769870590792,0.27139257,81084.0,81025.0,0.28547732]
[1769870590990,0.27139257,81082.0,81025.0,0.28547732]
[1769870591194,0.27139257,81080.0,81025.0,0.28547732]
[1769870591395,0.15680441,81079.0,81027.0,0.28547732]
[1769870591594,0.27139257,81078.0,81022.0,0.28547732]
[1769870591902,0.39476863,81078.0,81031.0,0.28547732]
[1769870592093,0.27139257,81076.0,81021.0,0.10008]
[1769870592301,0.27139257,81074.0,81021.0,0.10008]
[1769870592495,0.10008,81081.0,81021.0,0.10008]
[1769870592496,0.27139257,81072.0,81021.0,0.10008]
[1769870592695,0.27139257,81070.0,81021.0,0.10008]
[1769870592897,0.12337606,81073.0,81021.0,0.10008]
[1769870592898,0.27139257,81068.0,81021.0,0.10008]
[1769870593097,0.27139257,81066.0,81021.0,0.10008]
[1769870593301,0.27139257,81064.0,81021.0,0.10008]
[1769870593503,0.27139257,81062.0,81021.0,0.10008]
[1769870593695,0.27139257,81060.0,81021.0,0.10008]
[1769870593902,0.27139257,81058.0,81021.0,0.10008]
[1769870594098,0.15689199,81059.0,80996.0,0.28547732]
[1769870594099,0.27139257,81056.0,80996.0,0.28547732]
[1769870594307,0.27139257,81054.0,80996.0,0.28547732]
[1769870594505,0.27139257,81052.0,80997.0,0.12339356]
[1769870594704,0.27139257,81050.0,80997.0,0.12339356]
[1769870594911,0.27139257,81048.0,80994.0,0.10008]
[1769870595209,0.27139257,81046.0,80994.0,0.38555732]
[1769870595398,0.27139257,81044.0,80995.0,0.28557162]
[1769870595606,0.15690404,81045.0,80995.0,0.28557162]
[1769870595607,0.27139257,81042.0,80995.0,0.28557162]
[1769870595811,0.15690404,81041.0,80995.0,0.28557162]
[1769870596003,0.00913904,81041.0,80995.0,0.28557162]
[1769870596203,0.012357,81039.0,81000.0,0.28547732]
[1769870596411,0.012358,81035.0,81000.0,0.28547732]
[1769870596808,0.012358,81035.0,80995.0,9.43e-05]
[1769870596809,0.27139257,81054.0,81006.0,0.28547732]
[1769870597214,0.012355,81052.0,81009.0,0.28547732]
[1769870597413,0.012354,81063.0,81024.0,0.28547732]
[1769870597707,0.03139679,81053.0,81019.0,0.10008]
[1769870597897,0.03139679,81053.0,81020.0,0.28547732]
[1769870598103,0.10008,81079.0,81020.0,0.28547732]
[1769870598104,0.27139257,81072.0,81020.0,0.28547732]
[1769870598308,0.27139257,81072.0,81024.0,0.28547732]
[1769870599100,0.10008,81079.0,81024.0,0.28547732]
[1769870599101,0.27139257,81070.0,81024.0,0.28547732]
[1769870599306,0.12338367,81071.0,81026.0,0.28547732]
[1769870599519,0.10008,81079.0,81026.0,0.28547732]
[1769870599722,0.27139257,81095.0,81039.0,0.28547732]
[1769870600021,0.27139257,81090.0,81039.0,0.28547732]
[1769870600412,0.27139257,81090.0,81040.0,0.12337682]
[1769870600616,0.27139257,81088.0,81028.0,0.28547732]
[1769870600817,0.27139257,81086.0,81028.0,0.28547732]
[1769870601118,0.27139257,81084.0,81028.0,0.28547732]
[1769870601319,0.27139257,81082.0,81028.0,0.28547732]
[1769870601626,0.27139257,81080.0,81028.0,0.28547732]
[1769870601825,0.27139257,81078.0,81019.0,0.10008]
[1769870602016,0.27139257,81076.0,81019.0,0.10008]
[1769870602216,0.27139257,81074.0,81019.0,0.10008]
[1769870602515,0.27139257,81072.0,81004.0,0.28547732]
[1769870602716,0.27139257,81070.0,81004.0,0.28547732]
[1769870602915,0.27139257,81068.0,81004.0,0.28547732]
[1769870603218,0.27139257,81066.0,81004.0,0.28547732]
[1769870603421,0.27139257,81064.0,81004.0,0.28547732]
[1769870603621,0.27139257,81062.0,81004.0,0.28547732]
[1769870603826,0.27139257,81060.0,81004.0,0.28547732]
[1769870604027,0.27139257,81058.0,81006.0,0.28547732]
[1769870604329,0.00365473,81057.0,81006.0,0.28547732]
[1769870604512,0.2750473,81057.0,81006.0,0.28547732]
[1769870604718,0.27139257,81055.0,80995.0,0.28557162]
[1769870605026,0.27139257,81053.0,80997.0,0.28547732]
[1769870605217,0.27139257,81051.0,80997.0,0.28547732]
[1769870605419,0.12432271,81052.0,80997.0,0.28547732]
[1769870605620,0.012357,81038.0,80999.0,0.28547732]
[1769870605925,0.27139257,81047.0,80999.0,0.28547732]
[1769870606228,0.28816844,81058.0,81001.0,0.28547732]
[1769870606428,0.012357,81040.0,81001.0,0.28547732]
[1769870606814,0.012357,81040.0,81002.0,0.12341945]
[1769870607023,0.012357,81040.0,81003.0,0.28547732]
[1769870607419,0.10008,81059.0,81003.0,0.29784032]
[1769870607733,0.27139257,81056.0,81005.0,0.28547732]
[1769870608120,0.10008,81059.0,80995.0,9.43e-05]
[1769870608121,0.00639692,81058.0,81007.0,0.28547732]
[1769870608430,0.01403338,81055.0,81007.0,0.28547732]
[1769870608723,0.00822472,81056.0,81009.0,0.28547732]
[1769870608924,0.10008,81059.0,81009.0,0.28547732]
[1769870609421,0.10008,81059.0,80995.0,9.43e-05]
[1769870609422,0.27139257,81058.0,81011.0,0.28547732]
[1769870609627,0.27139257,81057.0,81011.0,0.28547732]
[1769870609827,0.13744348,81058.0,81011.0,0.28547732]
[1769870610029,0.10008,81059.0,81013.0,0.28547732]
[1769870610227,0.10008,81059.0,81017.0,0.28547732]
[1769870610432,0.10008,81059.0,81025.0,0.28547732]
[1769870611217,0.27139257,81058.0,81019.0,0.10008]
[1769870611429,0.27139257,81057.0,81019.0,0.10008]
[1769870611726,0.00274086,81056.0,81019.0,0.10008]
[1769870611926,0.27139257,81055.0,81019.0,0.10008]
[1769870612629,0.10008,81059.0,81019.0,0.10008]
[1769870612630,0.39479146,81054.0,81019.0,0.10008]
[1769870612929,0.27139257,81054.0,81019.0,0.10008]
[1769870613128,0.00672447,81058.0,81020.0,0.28547732]
[1769870613432,0.10008,81059.0,81020.0,0.28547732]
[1769870613828,0.12340042,81058.0,81020.0,0.28547732]
[1769870616129,0.10008,81059.0,81023.0,0.28547732]
[1769870616323,0.10008,81059.0,81025.0,0.28547732]
[1769870617019,0.28372494,81058.0,81011.0,0.28014975]
[1769870617222,0.10008,81059.0,81017.0,0.28014975]
[1769870617424,0.10008,81059.0,81028.0,0.28014975]
[1769870617635,0.10008,81059.0,81030.0,0.28014975]
[1769870617830,0.10008,81059.0,81032.0,0.28014975]
[1769870618730,0.10008,81059.0,81019.0,0.28014975]
[1769870619237,0.10008,81059.0,81024.0,0.28014975]
[1769870619534,0.28372494,81084.0,81026.0,0.28014975]
[1769870619843,0.10008,81086.0,81044.0,0.28014975]
[1769870620336,0.28372494,81085.0,81044.0,0.28014975]
[1769870620725,0.28495592,81083.0,81038.0,0.10008]
[1769870620933,0.28495592,81081.0,81038.0,0.10008]
[1769870621133,0.28495592,81079.0,81038.0,0.10008]
[1769870621333,0.15492759,81080.0,81038.0,0.10008]
[1769870621334,0.28495592,81077.0,81038.0,0.10008]
[1769870621529,0.28495592,81075.0,81038.0,0.10008]
[1769870622437,0.40832665,81074.0,81038.0,0.10008]
[1769870622639,0.10008,81086.0,81051.0,0.012355]
[1769870622931,0.28495592,81102.0,81052.0,0.27102746]
[1769870623133,0.28495592,81100.0,81052.0,0.27102746]
[1769870623329,0.28495592,81098.0,81052.0,0.39439895]
[1769870623637,0.28495592,81112.0,81058.0,0.27102746]
[1769870623833,0.28495592,81110.0,81060.0,0.27102746]
[1769870624434,0.12334258,81109.0,81060.0,0.27102746]
[1769870624943,0.10008,81113.0,81060.0,0.27102746]
[1769870625133,0.27634448,81112.0,81048.0,0.28338346]
[1769870625334,0.15301635,81111.0,81048.0,0.27102746]
[1769870625533,0.15301635,81110.0,81048.0,0.27102746]
[1769870625842,0.15301635,81109.0,81048.0,0.27102746]
[1769870626041,0.15301635,81108.0,81048.0,0.27102746]
[1769870626246,0.15301635,81107.0,81048.0,0.27102746]
[1769870626544,0.28495592,81105.0,81048.0,0.27102746]
[1769870626735,0.28495592,81103.0,81048.0,0.27102746]
[1769870626940,0.28495592,81101.0,81048.0,0.27102746]
[1769870627141,0.28495592,81099.0,81048.0,0.27102746]
[1769870627442,0.28495592,81099.0,81050.0,0.27102746]
[1769870627741,0.28495592,81097.0,81052.0,0.27102746]
[1769870627938,0.10008,81096.0,81052.0,0.27102746]
[1769870628129,0.10008,81096.0,81059.0,0.27102746]
[1769870628333,0.10008,81096.0,81068.0,0.27102746]
[1769870628840,0.28495592,81095.0,81069.0,0.12334334]
[1769870629041,0.10008,81096.0,81070.0,0.27102746]
[1769870629337,0.10008,81096.0,81071.0,0.012352]
[1769870629529,0.28495592,81117.0,81072.0,0.27102746]
[1769870630039,0.28495592,81115.0,81072.0,0.27102746]
[1769870630741,0.28495592,81113.0,81072.0,0.27102746]
[1769870631238,0.28495592,81113.0,81058.0,0.27102746]
[1769870631435,0.28495592,81111.0,81058.0,0.27102746]
[1769870631637,0.28495592,81109.0,81058.0,0.27102746]
[1769870632140,0.28495592,81107.0,81058.0,0.27102746]
[1769870632333,0.28495592,81105.0,81046.0,0.27102746]
[1769870632745,0.28495592,81103.0,81047.0,0.27102746]
[1769870632942,0.28495592,81103.0,81049.0,0.27102746]
[1769870633138,0.28495592,81103.0,81051.0,0.27102746]
[1769870633443,0.28495592,81101.0,81051.0,0.27102746]
[1769870633841,0.28495592,81100.0,81055.0,0.27102746]
[1769870634038,0.28495592,81099.0,81055.0,0.27102746]
[1769870634643,0.28495592,81097.0,81055.0,0.27102746]
[1769870635245,0.28495592,81095.0,81055.0,0.27102746]
[1769870635842,0.28495592,81093.0,81055.0,0.27102746]
[1769870636037,0.10004,81101.0,81070.0,0.18012744]
[1769870636338,0.28495592,81099.0,81060.0,0.27102746]
[1769870636540,0.28495592,81099.0,81039.0,0.27102746]
[1769870636848,0.28495592,81097.0,81040.0,0.27102746]
[1769870637041,0.28495592,81095.0,81041.0,0.27102746]
[1769870637241,0.28495592,81093.0,81041.0,0.27102746]
[1769870637441,0.28495592,81091.0,81041.0,0.27102746]
[1769870637644,0.15271209,81092.0,81041.0,0.27102746]
[1769870637645,0.28495592,81089.0,81041.0,0.27102746]
[1769870638046,0.28495592,81087.0,81041.0,0.27102746]
[1769870638644,0.09732997,81100.0,81041.0,0.27102746]
[1769870638645,0.28495592,81085.0,81041.0,0.27102746]
[1769870639349,0.12335932,81084.0,81041.0,0.27102746]
[1769870639541,0.12335932,81084.0,81040.0,0.18012744]
[1769870639542,0.12335932,81084.0,81046.0,0.27102746]
[1769870639742,0.10004,81101.0,81048.0,0.27102746]
[1769870639948,0.28495592,81099.0,81052.0,0.27102746]
[1769870640254,0.28495592,81097.0,81052.0,0.27102746]
[1769870640439,0.28495592,81095.0,81044.0,0.27102746]
[1769870640645,0.28495592,81093.0,81044.0,0.27102746]
[1769870641151,0.10004,81101.0,81024.0,0.27102746]
[1769870641152,0.28495592,81091.0,81024.0,0.27102746]
[1769870641456,0.28495592,81091.0,81010.0,0.18012744]
[1769870641457,0.28495592,81089.0,81031.0,0.27102746]
[1769870641652,0.28495592,81087.0,81031.0,0.27102746]
[1769870641852,0.28495592,81085.0,81031.0,0.27102746]
[1769870642055,0.28495592,81083.0,81033.0,0.27102746]
[1769870642355,0.28495592,81081.0,81033.0,0.27102746]
[1769870642748,0.12336693,81080.0,81033.0,0.27102746]
[1769870642947,0.28495592,81079.0,81033.0,0.27102746]
[1769870643551,0.28495592,81077.0,81033.0,0.27102746]
[1769870643757,0.28495592,81088.0,81051.0,0.27102746]
[1769870643955,0.28495592,81088.0,81050.0,0.18012744]
[1769870644254,0.28495592,81075.0,81050.0,0.18012744]
[1769870644849,0.28495592,81075.0,81033.0,0.10004]
[1769870645150,0.40831752,81074.0,81034.0,0.27102746]
[1769870645549,0.40831752,81074.0,81034.0,0.28338546]
[1769870646156,0.10004,81075.0,81050.0,0.18012744]
[1769870646357,0.10004,81075.0,81051.0,0.27102746]
[1769870646659,0.003,81114.0,81070.0,0.18012744]
[1769870646660,0.38499592,81100.0,81070.0,0.18012744]
[1769870647159,0.38499592,81100.0,81071.0,0.27041901]
[1769870647160,0.10004,81100.0,81071.0,0.27041901]
[1769870647347,0.10004,81100.0,81070.0,0.18012744]
[1769870647348,0.10004,81100.0,81075.0,0.27041901]
[1769870647752,0.10004,81100.0,81080.0,0.18012744]
[1769870648247,0.10004,81119.0,81081.0,0.27041901]
[1769870648649,0.10004,81119.0,81084.0,0.27041901]
[1769870648857,0.10004,81119.0,81081.0,0.12332357]
[1769870648858,0.10004,81119.0,81091.0,0.27041901]
[1769870649254,0.27428985,81118.0,81070.0,0.45054645]
[1769870649564,0.10004,81119.0,81057.0,0.06681676]
[1769870649565,0.10004,81119.0,81091.0,0.27041901]
[1769870649758,0.27428985,81118.0,81090.0,0.18012744]
[1769870650056,0.12330228,81118.0,81071.0,0.27041901]
[1769870650260,0.10004,81119.0,81091.0,0.27041901]
[1769870650654,0.27428985,81117.0,81053.0,0.00010357]
[1769870650854,0.27428985,81115.0,81053.0,0.00010357]
[1769870651057,0.27428985,81113.0,81053.0,0.00010357]
[1769870651359,0.27428985,81111.0,81053.0,0.00010357]
[1769870651565,0.27428985,81109.0,81053.0,0.00010357]
[1769870651863,0.27428985,81099.0,81010.0,0.18012744]
[1769870652072,0.27428985,81097.0,81011.0,0.10004]
[1769870652363,0.27428985,81095.0,81010.0,0.18012744]
[1769870652553,0.27428985,81095.0,80981.0,0.1375719]
[1769870652554,0.27428985,81085.0,81003.0,0.10004]
[1769870652754,0.18012744,81080.0,81003.0,0.10004]
[1769870652957,0.18012744,81080.0,80995.0,0.27041901]
[1769870652958,0.27428985,81041.0,80994.0,0.12333345]
[1769870653164,0.27428985,81041.0,80996.0,0.27041901]
[1769870653354,0.03655496,81040.0,81010.0,0.18012744]
[1769870653561,0.27428985,81052.0,81010.0,0.18012744]
[1769870653759,0.012359,81027.0,81010.0,0.18012744]
[1769870653963,0.01236,81023.0,80996.0,0.27041901]
[1769870654364,0.01236,81023.0,80996.0,0.39382856]
[1769870654567,0.012361,81015.0,80996.0,0.39382856]
[1769870654763,0.27428985,81042.0,80996.0,0.37925356]
[1769870654764,0.012362,81005.0,80996.0,0.37925356]
[1769870654970,0.27428985,81025.0,80993.0,0.085465]
[1769870655169,0.27428985,81025.0,80980.0,0.18012744]
[1769870655464,0.27428985,81023.0,80981.0,0.10004]
[1769870655669,0.00731397,81024.0,80981.0,0.10004]
[1769870655862,0.0045721,81022.0,80982.0,0.1234484]
[1769870656062,0.27428985,81032.0,80982.0,0.1234484]
[1769870656454,0.3294563,81027.0,80981.0,0.10004]
[1769870656658,0.27428985,81027.0,80981.0,0.10004]
[1769870656864,0.27428985,81025.0,80981.0,0.10004]
[1769870657269,0.27428985,81023.0,80981.0,0.10004]
[1769870657654,0.27428985,81021.0,80981.0,0.10004]
[1769870658056,0.12619398,81022.0,80982.0,0.27041901]
[1769870658057,0.00274337,81020.0,80982.0,0.27041901]
[1769870658262,0.00274337,81020.0,80983.0,0.27041901]
[1769870658456,0.06888105,81021.0,80983.0,0.27041901]
[1769870658658,0.06888105,81021.0,80978.0,0.32532]
[1769870658659,0.27428985,81020.0,80972.0,0.3254]
[1769870658865,0.01214771,81036.0,80981.0,0.27041901]
[1769870658866,0.27428985,81018.0,80981.0,0.27041901]
[1769870659267,0.00548359,81021.0,80981.0,0.27041901]
[1769870659566,0.27428985,81030.0,80983.0,0.27041901]
[1769870659767,0.012361,81015.0,80983.0,0.27041901]
[1769870660271,0.012361,81015.0,80985.0,0.27041901]
[1769870660568,0.012361,81015.0,80987.0,0.27041901]
[1769870660961,0.27428985,81040.0,80987.0,0.27041901]
[1769870661471,0.00548494,81039.0,81001.0,0.27041901]
[1769870661769,0.27428985,81050.0,80992.0,0.27041901]
[1769870661955,0.06947682,81065.0,80992.0,0.27041901]
[1769870661956,0.27428985,81043.0,80992.0,0.27041901]
[1769870662365,0.27428985,81041.0,80992.0,0.27041901]
[1769870662555,0.00457036,81042.0,80992.0,0.27041901]
[1769870662760,0.12342631,81042.0,80994.0,0.27041901]
[1769870662966,0.27428985,81051.0,80994.0,0.27041901]
[1769870663170,0.27428985,81040.0,80994.0,0.27041901]
[1769870663366,0.27428985,81040.0,80930.0,1.2367882]
[1769870663367,0.27428985,81040.0,80983.0,0.27041901]
[1769870663573,0.27428985,81038.0,80983.0,0.27041901]
[1769870663778,0.27428985,81038.0,80979.0,0.10008]
[1769870664068,0.27428985,81036.0,80980.0,0.27041901]
[1769870664465,0.27428985,81034.0,80980.0,0.27041901]
[1769870664864,0.012363,81003.0,80980.0,0.27041901]
[1769870665066,0.27428985,81019.0,80981.0,0.10008]
[1769870665373,0.012363,81002.0,80982.0,0.27041901]
[1769870665871,0.012358,81037.0,80991.0,0.27041901]
[1769870665872,0.27428985,81030.0,80991.0,0.27041901]
[1769870666059,0.27428985,81041.0,80991.0,0.27041901]
[1769870666264,0.18320339,81036.0,80991.0,0.27041901]
[1769870666571,0.27428985,81052.0,80999.0,0.27041901]
[1769870666870,0.27428985,81052.0,80992.0,0.12346898]
[1769870666871,0.12346898,81056.0,81011.0,0.27041901]
[1769870667061,0.12346898,81056.0,81013.0,0.27041901]
[1769870667264,0.27428985,81072.0,81013.0,0.27041901]
[1769870667473,0.27428985,81072.0,81012.0,0.10012]
[1769870667474,0.27428985,81072.0,81017.0,0.27041901]
[1769870667765,0.12341793,81071.0,81031.0,0.27041901]
[1769870667972,0.27428985,81072.0,81033.0,0.27041901]
[1769870668362,0.27428985,81072.0,81033.0,0.28277701]
[1769870668764,0.27428985,81072.0,81035.0,0.27041901]
[1769870669264,0.27428985,81072.0,81051.0,0.27041901]
[1769870669469,0.27428985,81072.0,81050.0,0.18012744]
[1769870669470,0.27428985,81072.0,81053.0,0.27041901]
[1769870669773,0.18329514,81072.0,81053.0,0.27041901]
[1769870669973,0.18329514,81072.0,81052.0,0.10012]
[1769870669974,0.18329514,81072.0,81054.0,0.39379583]
[1769870670175,0.18329514,81072.0,81055.0,0.27041901]
[1769870671270,0.09815473,81104.0,81055.0,0.27041901]
[1769870671470,0.16881927,81117.0,81055.0,0.27041901]
[1769870671777,0.27428985,81102.0,81052.0,0.10012]
[1769870672779,0.27428985,81100.0,81052.0,0.10012]
[1769870673473,0.27428985,81098.0,81052.0,0.10012]
[1769870674180,0.27428985,81096.0,81052.0,0.10012]
[1769870674674,0.27428985,81094.0,81028.0,0.27041901]
[1769870674878,0.27428985,81092.0,81029.0,0.10008]
[1769870675079,0.27428985,81090.0,81029.0,0.10008]
[1769870675679,0.27428985,81090.0,81020.0,0.18012744]
[1769870675979,0.27428985,81088.0,81020.0,0.18012744]
[1769870676180,0.27428985,81086.0,81020.0,0.18012744]
[1769870676376,0.27428985,81084.0,81020.0,0.18012744]
[1769870676574,0.14521922,81085.0,81004.0,0.27041901]
[1769870676575,0.27428985,81082.0,81004.0,0.27041901]
[1769870676773,0.27428985,81080.0,81004.0,0.27041901]
[1769870676981,0.2813937,81078.0,81004.0,0.27041901]
[1769870677183,0.2813937,81076.0,81004.0,0.27041901]
[1769870677474,0.2813937,81074.0,81004.0,0.27041901]
[1769870677682,0.2813937,81072.0,81004.0,0.27041901]
[1769870677883,0.2813937,81070.0,80993.0,0.38144393]
[1769870678077,0.2813937,81068.0,80994.0,0.28136393]
[1769870678381,0.14521922,81069.0,80995.0,0.28136393]
[1769870678382,0.2813937,81066.0,80995.0,0.28136393]
[1769870678584,0.2813937,81064.0,80995.0,0.28136393]
[1769870678778,0.2813937,81062.0,80995.0,0.28136393]
[1769870678978,0.2813937,81060.0,80997.0,0.28136393]
[1769870679179,0.2813937,81058.0,81001.0,0.28136393]
[1769870679378,0.2813937,81056.0,81001.0,0.28136393]
[1769870679775,0.2813937,81054.0,81001.0,0.28136393]
[1769870679975,0.1298082,81055.0,80993.0,0.10008]
[1769870679976,0.2813937,81052.0,80993.0,0.10008]
[1769870680280,0.2813937,81050.0,80993.0,0.10008]
[1769870680474,0.2813937,81048.0,80993.0,0.10008]
[1769870680673,0.29406783,81046.0,80993.0,0.10008]
[1769870680874,0.29406783,81044.0,80993.0,0.10008]
[1769870681278,0.29406783,81042.0,80993.0,0.10008]
[1769870681473,0.29406783,81042.0,80994.0,0.27215437]
[1769870681678,0.29406783,81040.0,80993.0,0.10008]
[1769870682077,0.29406783,81038.0,80993.0,0.10008]
[1769870682481,0.29406783,81036.0,80994.0,0.27215437]
[1769870682886,0.00182829,81035.0,80994.0,0.27215437]
[1769870683088,0.12525993,81035.0,80994.0,0.27215437]
[1769870683780,0.00182829,81035.0,80995.0,0.12343393]
[1769870683971,0.00182829,81035.0,80996.0,0.27215437]
[1769870684174,0.29406783,81046.0,80997.0,0.27215437]
[1769870684575,0.29406783,81046.0,80996.0,0.10008]
[1769870684576,0.16122859,81045.0,80999.0,0.27215437]
[1769870685179,0.16122859,81045.0,81001.0,0.27215437]
[1769870685380,0.29406783,81044.0,81001.0,0.27215437]
[1769870685676,0.29406783,81044.0,80986.0,0.27215437]
[1769870685879,0.29406783,81042.0,80986.0,0.27215437]
[1769870686078,0.29406783,81040.0,80986.0,0.27215437]
[1769870686274,0.29406783,81038.0,80986.0,0.27215437]
[1769870686685,0.12526231,81039.0,80986.0,0.27215437]
[1769870686686,0.29406783,81036.0,80986.0,0.27215437]
[1769870686886,0.29406783,81034.0,80971.0,0.10008]
[1769870687077,0.29406783,81032.0,80972.0,0.27215437]
[1769870687282,0.14567252,81033.0,80972.0,0.27215437]
[1769870687283,0.29406783,81030.0,80972.0,0.27215437]
[1769870687486,0.29406783,81028.0,80981.0,0.27215437]
[1769870687686,0.29406783,81026.0,80981.0,0.27215437]
[1769870687993,0.29406783,81024.0,80981.0,0.27215437]
[1769870688495,0.29406783,81022.0,80981.0,0.27215437]
[1769870688795,0.012364,80998.0,80969.0,0.2722794]
[1769870688994,0.012364,80994.0,80969.0,0.00012503]
[1769870689188,0.012365,80990.0,80969.0,0.00012503]
[1769870689495,0.012363,81000.0,80970.0,0.27215437]
[1769870689695,0.04419221,81004.0,80971.0,0.27215437]
[1769870689883,0.012361,81012.0,80981.0,0.27215437]
[1769870690087,0.04389066,81017.0,80981.0,0.27215437]
[1769870690088,0.012361,81017.0,80981.0,0.27215437]
[1769870690288,0.29406783,81039.0,81001.0,0.27215437]
[1769870690697,0.47544952,81039.0,81001.0,0.27215437]
[1769870690993,0.29406783,81038.0,80994.0,0.27215437]
[1769870691298,0.012355,81053.0,80994.0,0.27215437]
[1769870691299,0.012358,81031.0,81001.0,0.27215437]
[1769870691788,0.34008913,81038.0,81001.0,0.27215437]
[1769870691990,0.0460213,81038.0,81001.0,0.27215437]
[1769870692193,0.29406783,81049.0,81001.0,0.27215437]
[1769870692497,0.40052,81084.0,81000.0,0.18012744]
[1769870692498,0.29406783,81059.0,81005.0,0.27215437]
[1769870692796,0.03139679,81048.0,81005.0,0.27215437]
[1769870693192,0.03139679,81048.0,81020.0,0.18012744]
[1769870693391,0.29406783,81059.0,81021.0,0.27215437]
[1769870693897,0.12740002,81058.0,81022.0,0.27215437]
[1769870694193,0.10012,81067.0,81022.0,0.27215437]
[1769870694194,0.29406783,81060.0,81022.0,0.27215437]
[1769870694394,0.00307001,81057.0,81022.0,0.27215437]
[1769870694896,0.12339585,81056.0,81022.0,0.27215437]
[1769870695097,0.0009136,81059.0,81022.0,0.27215437]
[1769870695299,0.29406783,81060.0,81022.0,0.27215437]
[1769870695485,0.00215643,81059.0,81022.0,0.27215437]
[1769870695888,0.10012,81067.0,81021.0,0.10012]